Workbook

Sheet Loan
E2: Кредит | F2: -10000
E3: Процент | F3: 0.1
E4: Период | F4: 1
E5: Начало периода | F5: 2019-04-22
E6: Конец периода | F6: =EDATE(F5,F4*12) -> 2020-04-22
E7: Сумма переплаты по кредиту | F7: =SUM(INDIRECT("G"&11):INDIRECT("G"&F4*12+10)) -> -549.9064676
E8: Сумма выплат за весь период | F8: =SUM(INDIRECT("f"&11):INDIRECT("f"&F4*12+10)) -> 10549.90647
D9: График выплат
D10: Период | E10: Дата платежа | F10: Платеж | G10: % по кредиту | H10: тело долга | I10: Остаток долга
D11: 1 | E11: =EDATE(F$5,D11) -> 2019-05-22 | F11: =PMT($F$3/12,$F$4*12,$F$2) -> 879.1588723 | G11: =F2*F3/12 -> -83.33333333 | H11: =F11+G11 -> 795.825539 | I11: =H11+F2 -> -9204.174461
D12: 2 | E12: =EDATE(F$5,D12) -> 2019-06-22 | F12: =PMT($F$3/12,$F$4*12,$F$2) -> 879.1588723 | G12: =I11*$F$3/12 -> -76.70145384 | H12: =F12+G12 -> 802.4574185 | I12: =I11+H12 -> -8401.717043
D13: 3 | E13: 2019-07-22 | F13: 879.1588723 | G13: =I12*$F$3/12 -> -70.01430869 | H13: =F13+G13 -> 809.1445636 | I13: =I12+H13 -> -7592.572479
D14: 4 | E14: 2019-08-22 | F14: 879.1588723 | G14: -63.27143732 | H14: 815.887435 | I14: -6776.685044
D15: 5 | E15: 2019-09-22 | F15: 879.1588723 | G15: -56.47237537 | H15: 822.6864969 | I15: -5953.998547
D16: 6 | E16: 2019-10-22 | F16: 879.1588723 | G16: -49.61665456 | H16: 829.5422177 | I16: -5124.456329
D17: 7 | E17: 2019-11-22 | F17: 879.1588723 | G17: -42.70380274 | H17: 836.4550696 | I17: -4288.00126
D18: 8 | E18: 2019-12-22 | F18: 879.1588723 | G18: -35.73334383 | H18: 843.4255285 | I18: -3444.575731
D19: 9 | E19: 2020-01-22 | F19: 879.1588723 | G19: -28.70479776 | H19: 850.4540745 | I19: -2594.121657
D20: 10 | E20: 2020-02-22 | F20: 879.1588723 | G20: -21.61768047 | H20: 857.5411918 | I20: -1736.580465
D21: 11 | E21: 2020-03-22 | F21: 879.1588723 | G21: -14.47150387 | H21: 864.6873684 | I21: -871.8930965
D22: 12 | E22: 2020-04-22 | F22: 879.1588723 | G22: -7.265775804 | H22: 871.8930965 | I22: 0
D23: 13 | E23: 2020-05-22 | F23: 879.1588723 | G23: 0 | H23: 879.1588723 | I23: 879.1588723
D24: 14 | E24: 2020-06-22 | F24: 879.1588723 | G24: 7.326323936 | H24: 886.4851962 | I24: 1765.644069
D25: 15 | E25: 2020-07-22 | F25: 879.1588723 | G25: 14.71370057 | H25: 893.8725729 | I25: 2659.516641
D26: 16 | E26: 2020-08-22 | F26: 879.1588723 | G26: 22.16263868 | H26: 901.321511 | I26: 3560.838152
D27: 17 | E27: 2020-09-22 | F27: 879.1588723 | G27: 29.67365127 | H27: 908.8325236 | I27: 4469.670676
D28: 18 | E28: 2020-10-22 | F28: 879.1588723 | G28: 37.24725563 | H28: 916.4061279 | I28: 5386.076804
D29: 19 | E29: 2020-11-22 | F29: 879.1588723 | G29: 44.88397337 | H29: 924.0428457 | I29: 6310.11965
D30: 20 | E30: 2020-12-22 | F30: 879.1588723 | G30: 52.58433041 | H30: 931.7432027 | I30: 7241.862852
D31: 21 | E31: 2021-01-22 | F31: 879.1588723 | G31: =I30*$F$3/12 -> 60.3488571 | H31: =F31+G31 -> 939.5077294 | I31: =I30+H31 -> 8181.370582
D32: 22 | E32: 2021-02-22 | F32: 879.1588723 | G32: 68.17808818 | H32: 947.3369605 | I32: 9128.707542
D33: 23 | E33: 2021-03-22 | F33: 879.1588723 | G33: 76.07256285 | H33: 955.2314352 | I33: 10083.93898
D34: 24 | E34: 2021-04-22 | F34: 879.1588723 | G34: 84.03282481 | H34: 963.1916971 | I34: 11047.13067
D35: 25 | E35: 2021-05-22 | F35: 879.1588723 | G35: 92.05942229 | H35: 971.2182946 | I35: 12018.34897
D36: 26 | E36: 2021-06-22 | F36: 879.1588723 | G36: 100.1529081 | H36: 979.3117804 | I36: 12997.66075
D37: 27 | E37: 2021-07-22 | F37: 879.1588723 | G37: 108.3138396 | H37: 987.4727119 | I37: 13985.13346
D38: 28 | E38: 2021-08-22 | F38: 879.1588723 | G38: 116.5427788 | H38: 995.7016511 | I38: 14980.83511
D39: 29 | E39: 2021-09-22 | F39: 879.1588723 | G39: 124.8402926 | H39: 1003.999165 | I39: 15984.83428
D40: 30 | E40: 2021-10-22 | F40: 879.1588723 | G40: 133.2069523 | H40: 1012.365825 | I40: 16997.2001
D41: 31 | E41: 2021-11-22 | F41: 879.1588723 | G41: 141.6433342 | H41: 1020.802206 | I41: 18018.00231
D42: 32 | E42: 2021-12-22 | F42: 879.1588723 | G42: 150.1500192 | H42: 1029.308892 | I42: 19047.3112
D43: 33 | E43: 2022-01-22 | F43: 879.1588723 | G43: 158.7275933 | H43: 1037.886466 | I43: 20085.19767
D44: 34 | E44: 2022-02-22 | F44: 879.1588723 | G44: 167.3766472 | H44: 1046.53552 | I44: 21131.73319
D45: 35 | E45: 2022-03-22 | F45: 879.1588723 | G45: 176.0977765 | H45: 1055.256649 | I45: 22186.98983
D46: 36 | E46: 2022-04-22 | F46: 879.1588723 | G46: 184.8915819 | H46: 1064.050454 | I46: 23251.04029
D47: 37 | E47: 2022-05-22 | F47: 879.1588723 | G47: 193.7586691 | H47: 1072.917541 | I47: 24323.95783
D48: 38 | E48: 2022-06-22 | F48: 879.1588723 | G48: 202.6996486 | H48: 1081.858521 | I48: 25405.81635
D49: 39 | E49: 2022-07-22 | F49: 879.1588723 | G49: 211.7151363 | H49: 1090.874009 | I49: 26496.69036
D50: 40 | E50: 2022-08-22 | F50: 879.1588723 | G50: 220.805753 | H50: 1099.964625 | I50: 27596.65498
D51: 41 | E51: 2022-09-22 | F51: 879.1588723 | G51: 229.9721249 | H51: 1109.130997 | I51: 28705.78598
D52: 42 | E52: 2022-10-22 | F52: 879.1588723 | G52: 239.2148832 | H52: 1118.373755 | I52: 29824.15974
D53: 43 | E53: 2022-11-22 | F53: 879.1588723 | G53: 248.5346645 | H53: 1127.693537 | I53: 30951.85327
D54: 44 | E54: 2022-12-22 | F54: 879.1588723 | G54: 257.9321106 | H54: 1137.090983 | I54: 32088.94426
D55: 45 | E55: 2023-01-22 | F55: 879.1588723 | G55: 267.4078688 | H55: 1146.566741 | I55: 33235.511
D56: 46 | E56: 2023-02-22 | F56: 879.1588723 | G56: 276.9625916 | H56: 1156.121464 | I56: 34391.63246
D57: 47 | E57: 2023-03-22 | F57: 879.1588723 | G57: 286.5969372 | H57: 1165.755809 | I57: 35557.38827
D58: 48 | E58: 2023-04-22 | F58: 879.1588723 | G58: 296.3115689 | H58: 1175.470441 | I58: 36732.85871
D59: 49 | E59: 2023-05-22 | F59: 879.1588723 | G59: 306.1071559 | H59: 1185.266028 | I59: 37918.12474
D60: 50 | E60: 2023-06-22 | F60: 879.1588723 | G60: 315.9843728 | H60: 1195.143245 | I60: 39113.26799
D61: 51 | E61: 2023-07-22 | F61: 879.1588723 | G61: 325.9438999 | H61: 1205.102772 | I61: 40318.37076
D62: 52 | E62: 2023-08-22 | F62: 879.1588723 | G62: 335.986423 | H62: 1215.145295 | I62: 41533.51605
D63: 53 | E63: 2023-09-22 | F63: 879.1588723 | G63: 346.1126338 | H63: 1225.271506 | I63: 42758.78756
D64: 54 | E64: 2023-10-22 | F64: 879.1588723 | G64: 356.3232297 | H64: 1235.482102 | I64: 43994.26966
D65: 55 | E65: 2023-11-22 | F65: 879.1588723 | G65: 366.6189138 | H65: 1245.777786 | I65: 45240.04745
D66: 56 | E66: 2023-12-22 | F66: 879.1588723 | G66: 377.0003954 | H66: 1256.159268 | I66: 46496.20672
D67: 57 | E67: 2024-01-22 | F67: 879.1588723 | G67: 387.4683893 | H67: 1266.627262 | I67: 47762.83398
D68: 58 | E68: 2024-02-22 | F68: 879.1588723 | G68: 398.0236165 | H68: 1277.182489 | I68: 49040.01647
D69: 59 | E69: 2024-03-22 | F69: 879.1588723 | G69: 408.6668039 | H69: 1287.825676 | I69: 50327.84214
D70: 60 | E70: 2024-04-22 | F70: 879.1588723 | G70: 419.3986845 | H70: 1298.557557 | I70: 51626.3997
D71: 61 | E71: 2024-05-22 | F71: 879.1588723 | G71: 430.2199975 | H71: 1309.37887 | I71: 52935.77857
D72: 62 | E72: 2024-06-22 | F72: 879.1588723 | G72: 441.1314881 | H72: 1320.29036 | I72: 54256.06893
D73: 63 | E73: 2024-07-22 | F73: 879.1588723 | G73: 452.1339077 | H73: 1331.29278 | I73: 55587.36171
D74: 64 | E74: 2024-08-22 | F74: 879.1588723 | G74: 463.2280142 | H74: 1342.386887 | I74: 56929.7486
D75: 65 | E75: 2024-09-22 | F75: 879.1588723 | G75: =I74*$F$3/12 -> 474.4145716 | H75: =F75+G75 -> 1353.573444 | I75: =I74+H75 -> 58283.32204
D76: 66 | E76: =EDATE(F$5,D76) -> 2024-10-22 | F76: =PMT($F$3/12,$F$4*12,$F$2) -> 879.1588723 | G76: 485.6943503 | H76: 1364.853223 | I76: 59648.17526
D77: 67 | E77: 2024-11-22 | F77: 879.1588723 | G77: 497.0681272 | H77: 1376.226999 | I77: 61024.40226
D78: 68 | E78: 2024-12-22 | F78: 879.1588723 | G78: 508.5366855 | H78: 1387.695558 | I78: 62412.09782
D79: 69 | E79: 2025-01-22 | F79: 879.1588723 | G79: 520.1008152 | H79: 1399.259687 | I79: 63811.35751
D80: 70 | E80: 2025-02-22 | F80: 879.1588723 | G80: 531.7613126 | H80: 1410.920185 | I80: 65222.27769
D81: 71 | E81: 2025-03-22 | F81: 879.1588723 | G81: 543.5189808 | H81: 1422.677853 | I81: 66644.95554
D82: 72 | E82: 2025-04-22 | F82: 879.1588723 | G82: 555.3746295 | H82: 1434.533502 | I82: 68079.48905
D83: 73 | E83: 2025-05-22 | F83: 879.1588723 | G83: 567.3290754 | H83: 1446.487948 | I83: 69525.97699
D84: 74 | E84: 2025-06-22 | F84: 879.1588723 | G84: 579.3831416 | H84: 1458.542014 | I84: 70984.51901
D85: 75 | E85: 2025-07-22 | F85: 879.1588723 | G85: 591.5376584 | H85: 1470.696531 | I85: 72455.21554
D86: 76 | E86: 2025-08-22 | F86: 879.1588723 | G86: 603.7934628 | H86: 1482.952335 | I86: 73938.16787
D87: 77 | E87: 2025-09-22 | F87: 879.1588723 | G87: 616.1513989 | H87: 1495.310271 | I87: 75433.47814
D88: 78 | E88: 2025-10-22 | F88: 879.1588723 | G88: 628.6123179 | H88: 1507.77119 | I88: 76941.24934
D89: 79 | E89: 2025-11-22 | F89: 879.1588723 | G89: 641.1770778 | H89: 1520.33595 | I89: 78461.58529
D90: 80 | E90: 2025-12-22 | F90: 879.1588723 | G90: 653.846544 | H90: 1533.005416 | I90: 79994.5907
D91: 81 | E91: 2026-01-22 | F91: 879.1588723 | G91: 666.6215892 | H91: 1545.780461 | I91: 81540.37116
D92: 82 | E92: 2026-02-22 | F92: 879.1588723 | G92: 679.503093 | H92: 1558.661965 | I92: 83099.03313
D93: 83 | E93: 2026-03-22 | F93: 879.1588723 | G93: 692.4919427 | H93: 1571.650815 | I93: 84670.68394
D94: 84 | E94: 2026-04-22 | F94: 879.1588723 | G94: 705.5890329 | H94: 1584.747905 | I94: 86255.43185
D95: 85 | E95: 2026-05-22 | F95: 879.1588723 | G95: 718.7952654 | H95: 1597.954138 | I95: 87853.38599
D96: 86 | E96: 2026-06-22 | F96: 879.1588723 | G96: 732.1115499 | H96: 1611.270422 | I96: 89464.65641
D97: 87 | E97: 2026-07-22 | F97: 879.1588723 | G97: 745.5388034 | H97: 1624.697676 | I97: 91089.35408
D98: 88 | E98: 2026-08-22 | F98: 879.1588723 | G98: 759.0779507 | H98: 1638.236823 | I98: 92727.59091
D99: 89 | E99: 2026-09-22 | F99: 879.1588723 | G99: 772.7299242 | H99: 1651.888797 | I99: 94379.4797
D100: 90 | E100: 2026-10-22 | F100: 879.1588723 | G100: 786.4956642 | H100: 1665.654536 | I100: 96045.13424
D101: 91 | E101: 2026-11-22 | F101: 879.1588723 | G101: 800.3761187 | H101: 1679.534991 | I101: 97724.66923
D102: 92 | E102: 2026-12-22 | F102: 879.1588723 | G102: 814.3722436 | H102: 1693.531116 | I102: 99418.20035
D103: 93 | E103: 2027-01-22 | F103: 879.1588723 | G103: 828.4850029 | H103: 1707.643875 | I103: 101125.8442
D104: 94 | E104: 2027-02-22 | F104: 879.1588723 | G104: 842.7153685 | H104: 1721.874241 | I104: 102847.7185
D105: 95 | E105: 2027-03-22 | F105: 879.1588723 | G105: 857.0643205 | H105: 1736.223193 | I105: 104583.9417
D106: 96 | E106: 2027-04-22 | F106: 879.1588723 | G106: 871.5328471 | H106: 1750.691719 | I106: 106334.6334
D107: 97 | E107: 2027-05-22 | F107: 879.1588723 | G107: 886.1219448 | H107: 1765.280817 | I107: 108099.9142
D108: 98 | E108: 2027-06-22 | F108: 879.1588723 | G108: 900.8326183 | H108: 1779.991491 | I108: 109879.9057
D109: 99 | E109: 2027-07-22 | F109: 879.1588723 | G109: 915.6658807 | H109: 1794.824753 | I109: 111674.7304
D110: 100 | E110: 2027-08-22 | F110: 879.1588723 | G110: 930.6227536 | H110: 1809.781626 | I110: 113484.5121
D111: 101 | E111: 2027-09-22 | F111: 879.1588723 | G111: 945.7042672 | H111: 1824.863139 | I111: 115309.3752
D112: 102 | E112: 2027-10-22 | F112: 879.1588723 | G112: 960.91146 | H112: 1840.070332 | I112: 117149.4455
D113: 103 | E113: 2027-11-22 | F113: 879.1588723 | G113: 976.2453794 | H113: 1855.404252 | I113: 119004.8498
D114: 104 | E114: 2027-12-22 | F114: 879.1588723 | G114: 991.7070815 | H114: 1870.865954 | I114: 120875.7157
D115: 105 | E115: 2028-01-22 | F115: 879.1588723 | G115: 1007.297631 | H115: 1886.456503 | I115: 122762.1722
D116: 106 | E116: 2028-02-22 | F116: 879.1588723 | G116: 1023.018102 | H116: 1902.176974 | I116: 124664.3492
D117: 107 | E117: 2028-03-22 | F117: 879.1588723 | G117: 1038.869577 | H117: 1918.028449 | I117: 126582.3777
D118: 108 | E118: 2028-04-22 | F118: 879.1588723 | G118: 1054.853147 | H118: 1934.01202 | I118: 128516.3897
D119: 109 | E119: 2028-05-22 | F119: 879.1588723 | G119: 1070.969914 | H119: 1950.128786 | I119: 130466.5185
D120: 110 | E120: 2028-06-22 | F120: 879.1588723 | G120: 1087.220987 | H120: 1966.37986 | I120: 132432.8983
D121: 111 | E121: 2028-07-22 | F121: 879.1588723 | G121: 1103.607486 | H121: 1982.766358 | I121: 134415.6647
D122: 112 | E122: 2028-08-22 | F122: 879.1588723 | G122: 1120.130539 | H122: 1999.289411 | I122: 136414.9541
D123: 113 | E123: 2028-09-22 | F123: 879.1588723 | G123: 1136.791284 | H123: 2015.950156 | I123: 138430.9043
D124: 114 | E124: 2028-10-22 | F124: 879.1588723 | G124: 1153.590869 | H124: 2032.749741 | I124: 140463.654
D125: 115 | E125: 2028-11-22 | F125: 879.1588723 | G125: 1170.53045 | H125: 2049.689322 | I125: 142513.3433
D126: 116 | E126: 2028-12-22 | F126: 879.1588723 | G126: 1187.611194 | H126: 2066.770067 | I126: 144580.1134
D127: 117 | E127: 2029-01-22 | F127: 879.1588723 | G127: 1204.834278 | H127: 2083.993151 | I127: 146664.1065
D128: 118 | E128: 2029-02-22 | F128: 879.1588723 | G128: 1222.200888 | H128: 2101.35976 | I128: 148765.4663
D129: 119 | E129: 2029-03-22 | F129: 879.1588723 | G129: 1239.712219 | H129: 2118.871091 | I129: 150884.3374
D130: 120 | E130: 2029-04-22 | F130: 879.1588723 | G130: 1257.369478 | H130: 2136.528351 | I130: 153020.8657
F131: =SUM(F10:F130) -> 105499.0647 | G131: =SUM(G10:G130) -> 57521.80106 | H131: =SUM(H10:H130) -> 163020.8657
